bitfinex/quotes_ETHUSD_20250715
["timestamp","ask_amount","ask_price","bid_price","bid_amount"]
[1752564917737,5.119,2986.1,2986.0,3.34895508]
[1752564920987,5.119,2986.1,2985.9,3.51621859]
[1752564922687,5.119,2986.1,2986.0,3.34896182]
[1752564923189,5.119,2986.1,2985.9,0.1672]
[1752564923360,1.2061,2986.0,2985.8,0.001]
[1752564923687,5.114,2985.9,2985.8,0.001]
[1752564923845,5.5644,2985.9,2985.8,0.001]
[1752564924047,5.114,2985.9,2985.8,0.001]
[1752564924641,5.5644,2985.9,2985.8,0.001]
[1752564925279,8.46307398,2985.9,2985.8,0.001]
[1752564925489,10.04758066,2985.9,2985.8,0.001]
[1752564925697,6.69850668,2985.9,2985.8,0.001]
[1752564926387,10.04758066,2985.9,2985.8,0.001]
[1752564926845,6.69850668,2985.9,2985.8,0.001]
[1752564927043,10.04758066,2985.9,2985.8,0.001]
[1752564928192,6.69850668,2985.9,2985.8,0.001]
[1752564929985,0.1672,2985.9,2985.8,0.001]
[1752564930194,0.1672,2986.1,2985.8,0.001]
[1752564930484,5.111,2986.0,2985.8,0.001]
[1752564930985,0.4479,2985.9,2985.8,0.001]
[1752564931986,5.111,2986.0,2985.8,0.001]
[1752564932343,5.5589,2986.0,2985.8,0.001]
[1752564932743,0.4479,2985.9,2985.8,0.001]
[1752564932986,5.5589,2986.0,2985.8,0.001]
[1752564935763,0.4479,2986.0,2985.8,3.3501635]
[1752564935966,5.108,2985.9,2985.8,0.001]
[1752564937086,5.108,2985.9,2985.8,3.35018614]
[1752564937260,0.1672,2986.1,2986.0,3.34896182]
[1752564937460,0.002,2986.3,2986.1,3.3487932]
[1752564937790,5.106,2986.2,2986.1,3.3487932]
[1752564938088,0.002,2986.3,2986.2,3.51593752]
[1752564938388,5.109,2986.3,2986.2,3.51593752]
[1752564940556,5.109,2986.3,2986.2,0.1672]
[1752564940786,5.109,2986.3,2986.2,3.51593752]
[1752564941088,5.108,2986.3,2986.2,3.51593752]
[1752564943596,5.108,2986.3,2986.2,3.96943752]
[1752564943751,5.108,2986.3,2986.2,0.1672]
[1752564943950,5.5559,2986.3,2986.1,0.1672]
[1752564946994,5.108,2986.3,2986.1,0.1672]
[1752564947290,0.4479,2986.2,2986.1,0.1672]
[1752564948997,0.002,2986.3,2986.1,0.1672]
[1752564949295,5.104,2986.2,2986.1,0.1672]
[1752564953765,5.104,2986.2,2986.1,3.51604967]
[1752564954180,0.002,2986.3,2986.2,3.34873752]
[1752564954401,5.106,2986.3,2986.2,3.34873752]
[1752564954695,5.106,2986.3,2986.2,3.51593752]
[1752564954926,5.106,2986.3,2986.2,0.1672]
[1752564955070,5.106,2986.3,2986.2,3.51593752]
[1752564955992,0.002,2986.3,2986.2,3.51593752]
[1752564956212,5.106,2986.3,2986.2,3.51593752]
[1752564956895,5.106,2986.3,2986.2,0.1672]
[1752564957228,5.106,2986.3,2986.2,3.51593752]
[1752564957828,5.538,2986.3,2986.2,3.51593752]
[1752564958035,5.106,2986.3,2986.2,3.51593752]
[1752564958537,0.002,2986.3,2986.2,11.59149203]
[1752564958720,5.105,2986.3,2986.2,11.59149203]
[1752564959606,5.105,2986.3,2986.2,5.13491566]
[1752564960549,5.105,2986.3,2986.2,4.67851566]
[1752564961608,5.105,2986.3,2986.1,4.76]
[1752564961609,5.537,2986.3,2986.1,4.76]
[1752564961835,0.432,2986.2,2986.1,4.76]
[1752564962215,0.432,2986.2,2986.0,0.001]
[1752564962742,0.432,2986.2,2986.0,3.34994813]
[1752564963115,0.432,2986.2,2986.0,0.001]
[1752564963317,0.432,2986.2,2986.0,3.34994804]
[1752564963729,0.432,2986.2,2986.1,3.34884967]
[1752564964234,0.432,2986.2,2986.0,3.34994218]
[1752564964855,0.432,2986.2,2986.0,0.001]
[1752564965020,0.432,2986.2,2986.0,3.3499494]
[1752564965408,5.105,2986.3,2986.0,3.3499494]
[1752564965723,0.432,2986.2,2986.0,3.3499494]
[1752564965944,5.105,2986.3,2986.0,3.3499494]
[1752564966153,0.432,2986.1,2986.0,3.3499494]
[1752564966742,5.105,2986.3,2986.1,3.34882174]
[1752564966937,5.105,2986.3,2986.2,3.34873752]
[1752564967256,5.537,2986.3,2986.2,3.34873752]
[1752564967477,5.537,2986.3,2986.1,3.3487969]
[1752564967667,5.537,2986.3,2986.2,3.34873752]
[1752564967668,0.002,2986.3,2986.2,3.34873752]
[1752564967969,0.002,2986.3,2986.2,4.01859567]
[1752564968114,5.105,2986.3,2986.2,8.77859567]
[1752564969460,5.105,2986.3,2986.2,8.10873752]
[1752564971635,0.002,2986.3,2986.2,8.27593752]
[1752564971835,0.002,2986.3,2986.2,8.73233752]
[1752564972078,5.105,2986.3,2986.2,8.73233752]
[1752564974370,5.105,2986.3,2986.2,8.27593752]
[1752564976877,5.537,2986.3,2986.2,4.9272]
[1752564980123,5.537,2986.3,2986.2,0.1672]
[1752564981119,5.537,2986.3,2986.1,4.9272]
[1752564981414,5.105,2986.3,2986.2,3.34873752]
[1752564981595,5.537,2986.3,2986.2,3.34873752]
[1752564982715,0.002,2986.3,2986.2,3.34873752]
[1752564982920,5.104,2986.3,2986.2,4.44640765]
[1752564983095,5.104,2986.3,2986.2,3.34873752]
[1752564985738,5.104,2986.3,2986.1,8.276042]
[1752564985739,5.536,2986.3,2986.1,8.276042]
[1752564985913,5.536,2986.3,2986.1,3.516042]
[1752564985914,5.104,2986.3,2986.1,3.516042]
[1752564986115,0.432,2986.2,2986.1,3.516042]
[1752564986332,0.432,2986.2,2986.1,0.1672]
[1752564986503,0.432,2986.2,2986.0,4.761]
[1752564986504,1.2317,2986.2,2986.0,4.761]
[1752564986908,5.102,2986.1,2986.0,4.761]
[1752564987115,5.5761,2986.1,2986.0,4.761]
[1752564989148,5.5761,2986.1,2986.0,8.10996182]
[1752564989501,5.5761,2986.1,2986.0,4.761]
[1752564990954,5.5761,2986.1,2986.0,8.10996182]
[1752564991102,5.5761,2986.1,2986.0,4.761]
[1752564991841,5.5761,2986.1,2986.0,0.001]
[1752564993217,5.5761,2986.1,2986.0,3.34996182]
[1752564993743,5.5761,2986.1,2986.0,0.001]
[1752565002668,0.002,2986.3,2986.0,0.001]
[1752565002901,0.002,2986.3,2986.2,3.34873752]
[1752565003082,5.103,2986.3,2986.1,3.34880969]
[1752565003300,5.103,2986.3,2986.2,3.34873752]
[1752565003609,5.103,2986.3,2986.1,3.34879142]
[1752565003981,5.103,2986.3,2986.0,3.51711657]
[1752565004203,5.103,2986.3,2986.1,3.34883881]
[1752565004204,5.5771,2986.3,2986.1,3.34883881]
[1752565004406,5.5771,2986.3,2986.0,3.51710719]
[1752565004907,5.5771,2986.3,2986.0,3.51710459]
[1752565005237,0.4741,2986.2,2986.0,0.1682]
[1752565005513,5.101,2986.1,2986.0,0.1682]
[1752565006538,5.101,2986.1,2986.0,3.51716182]
[1752565007090,5.101,2986.1,2986.0,3.95146182]
[1752565007291,5.101,2986.1,2986.0,3.51716182]
[1752565012803,0.002,2986.3,2986.1,3.34875935]
[1752565013023,5.101,2986.2,2986.1,3.34875695]
[1752565014211,5.101,2986.2,2986.0,0.1682]
[1752565014434,5.5751,2986.2,2986.0,0.1682]
[1752565014614,0.4741,2986.1,2986.0,0.1682]
[1752565014939,0.4741,2986.1,2986.0,0.001]
[1752565016809,0.4741,2986.1,2986.0,3.34996182]
[1752565017005,0.4741,2986.1,2986.0,0.001]
[1752565025029,0.4741,2986.1,2986.0,3.34996182]
[1752565025555,0.4741,2986.1,2986.0,0.001]
[1752565026055,0.002,2986.3,2986.0,0.001]
[1752565026226,0.002,2986.3,2986.2,3.34873752]
[1752565026619,5.101,2986.3,2986.2,3.34873752]
[1752565026849,5.101,2986.3,2986.2,3.82243752]
[1752565027050,0.002,2986.3,2986.2,3.82243752]
[1752565027216,5.101,2986.3,2986.2,3.82243752]
[1752565027772,0.002,2986.3,2986.2,4.7235853]
[1752565028049,5.101,2986.3,2986.2,4.7235853]
[1752565030546,0.002,2986.3,2986.2,4.7235853]
[1752565030750,5.101,2986.3,2986.2,11.18016167]
[1752565033044,5.101,2986.3,2986.2,4.7235853]
[1752565033254,5.101,2986.3,2986.2,9.0098853]
[1752565033572,5.101,2986.3,2986.2,8.27593752]
[1752565039078,5.101,2986.3,2986.2,3.51593752]
[1752565040484,0.002,2986.3,2986.2,3.51593752]
[1752565040651,5.099,2986.3,2986.2,3.51593752]
[1752565043750,6.3685,2986.3,2986.0,4.761]
[1752565043950,0.4742,2986.2,2986.0,4.9282]
[1752565044149,14.61834967,2986.1,2986.0,0.001]
[1752565044482,14.78554967,2986.1,2986.0,0.001]
[1752565045578,16.5337,2986.1,2986.0,0.001]
[1752565045769,19.88254967,2986.1,2986.0,0.001]
[1752565045972,21.63822901,2986.1,2986.0,0.001]
[1752565046489,13.19237934,2986.1,2986.0,0.001]
[1752565046697,18.28937934,2986.1,2986.0,0.001]
[1752565046876,16.4906,2986.1,2986.0,0.001]
[1752565047197,11.2264,2986.1,2986.0,0.001]
[1752565047498,16.3234,2986.1,2986.0,0.001]
[1752565051013,19.67224967,2986.1,2986.0,0.001]
[1752565051215,21.99126918,2986.1,2986.0,0.001]
[1752565051415,22.15846918,2986.1,2986.0,0.001]
[1752565053867,13.28151951,2986.1,2986.0,0.001]
[1752565054107,16.4906,2986.1,2986.0,0.001]
[1752565055584,11.3936,2986.1,2986.0,0.001]
[1752565055912,16.4906,2986.1,2986.0,0.001]
[1752565056597,15.2642,2986.1,2986.0,0.001]
[1752565057202,10.5983,2986.1,2986.0,0.001]
[1752565057576,15.6953,2986.1,2986.0,0.001]
[1752565058425,15.2642,2986.1,2986.0,0.001]
[1752565058932,10.1672,2986.1,2986.0,0.001]
[1752565059115,15.2632,2986.1,2986.0,0.001]
[1752565059632,10.1672,2986.1,2986.0,0.001]
[1752565059794,15.2632,2986.1,2986.0,0.001]
[1752565060640,15.6943,2986.1,2986.0,0.001]
[1752565061116,19.04314967,2986.1,2986.0,0.001]
[1752565062401,15.6943,2986.1,2986.0,0.001]
[1752565062618,21.47520967,2986.1,2986.0,0.001]
[1752565075709,16.37920967,2986.1,2986.0,0.001]
[1752565075888,21.47520967,2986.1,2986.0,0.001]
[1752565079243,21.47420967,2986.1,2986.0,0.001]
[1752565086815,10.59315035,2985.9,2985.8,0.001]
[1752565087021,25.68815035,2985.9,2985.8,0.001]
[1752565087336,26.12525035,2985.9,2985.8,1e-08]
[1752565087646,26.67525035,2985.9,2985.8,1e-08]
[1752565087935,20.59348687,2985.6,2985.5,1e-08]
[1752565088138,25.68748687,2985.6,2985.5,1e-08]
[1752565088344,26.12458687,2985.6,2985.5,1e-08]
[1752565089705,14.5740105,2985.6,2985.5,1e-08]
[1752565089906,19.6680105,2985.6,2985.5,1e-08]
[1752565090135,20.74363849,2985.6,2985.5,1e-08]
[1752565090336,20.74463849,2985.6,2985.5,1e-08]
[1752565092751,27.20121486,2985.6,2985.5,1e-08]
[1752565094283,4.15847152,2985.1,2985.0,0.001]
[1752565094406,19.25347152,2985.1,2985.0,0.001]
[1752565094745,21.50953152,2985.1,2985.0,0.001]
[1752565096855,16.41453152,2985.1,2985.0,0.001]
[1752565097013,10.7946,2985.0,2984.1,0.04]
[1752565097213,0.7946,2984.2,2984.1,0.04]
[1752565097412,5.095,2984.2,2984.1,0.04]
[1752565097717,5.095,2984.2,2984.1,0.4954]
[1752565097718,15.2632,2984.2,2984.1,0.4954]
[1752565098130,15.096,2984.2,2984.1,0.4954]
[1752565098565,0.1672,2984.3,2984.1,0.4954]
[1752565098763,5.097,2984.2,2984.1,0.04]
[1752565099284,5.097,2984.2,2984.1,0.4954]
[1752565099635,8.44798183,2984.2,2984.1,0.04]
[1752565100579,18.61518183,2984.2,2984.1,0.04]
[1752565105082,19.05228183,2984.2,2984.1,0.04]
[1752565105295,21.33159714,2984.2,2984.1,0.04]
[1752565106298,22.09739714,2984.2,2984.1,0.04]
[1752565107426,28.55397351,2984.2,2984.1,0.04]
[1752565109298,3.35208865,2983.3,2983.1,0.04]
[1752565109636,8.44810512,2983.2,2983.1,0.04]
[1752565109832,5.096,2983.2,2983.1,0.5117]
[1752565110331,0.1672,2983.3,2983.1,0.5117]
[1752565110648,5.096,2983.2,2983.1,3.86385746]
[1752565111919,5.096,2983.2,2983.1,0.5117]
[1752565112231,5.096,2983.2,2983.1,0.04]
[1752565112423,5.096,2983.2,2983.1,0.5117]
[1752565114500,5.096,2983.2,2983.1,3.86391749]
[1752565114825,5.096,2983.2,2983.1,4.76956176]
[1752565115512,0.1672,2983.6,2983.1,7.87392064]
[1752565115716,5.096,2983.5,2983.4,3.3518804]
[1752565115915,5.096,2983.5,2983.4,3.8235804]
[1752565116333,5.096,2983.5,2983.4,0.4717]
[1752565116633,5.096,2983.5,2983.4,3.8235804]
[1752565116826,5.096,2983.5,2983.4,0.4717]
[1752565117205,5.096,2983.5,2983.4,3.8235804]
[1752565117549,5.2632,2983.5,2983.1,0.04]
[1752565117720,6.20697865,2983.5,2983.1,0.04]
[1752565118042,5.2632,2983.5,2983.1,3.39219528]
[1752565118241,5.2632,2983.5,2983.2,0.4717]
[1752565118442,5.096,2983.5,2983.3,3.35192562]
[1752565118808,5.096,2983.5,2983.4,3.8235804]
[1752565119004,5.096,2983.5,2983.4,0.4717]
[1752565119346,5.096,2983.5,2983.2,0.4717]
[1752565119547,5.096,2983.5,2983.3,0.4717]
[1752565120832,5.096,2983.5,2983.1,0.2072]
[1752565121145,5.096,2983.5,2983.4,3.8235804]
[1752565121352,5.096,2983.5,2983.4,0.4717]
[1752565121850,5.096,2983.5,2983.2,0.66637764]
[1752565122008,5.096,2983.5,2983.2,3.35202482]
[1752565122209,5.096,2983.5,2983.3,0.4717]
[1752565123522,5.096,2983.5,2983.4,0.4717]
[1752565124063,0.7927,2983.4,2983.1,0.04]
[1752565124224,16.33952764,2983.3,2983.1,0.04]
[1752565124410,18.45705803,2983.3,2983.1,0.04]
[1752565124758,13.35210512,2983.2,2983.1,0.04]
[1752565125944,13.80630512,2983.2,2983.1,0.04]
[1752565126467,14.56510512,2983.2,2983.1,1e-08]
[1752565126670,16.79143566,2983.2,2983.1,1e-08]
[1752565127729,21.91243566,2983.2,2983.1,1e-08]
[1752565128037,0.8154,2983.8,2983.1,6.92827638]
[1752565128355,5.12,2983.7,2983.2,3.35208866]
[1752565128647,10.0,2983.6,2983.2,3.82378866]
[1752565128836,5.123,2983.5,2983.2,3.82378866]
[1752565129853,5.123,2983.5,2983.2,0.4717]
[1752565130448,5.123,2983.5,2983.1,1e-08]
[1752565130643,3.35190058,2983.4,2983.1,1e-08]
[1752565130949,5.122,2983.3,2983.1,1e-08]
[1752565131758,5.122,2983.3,2983.1,3.35216013]
[1752565132058,5.122,2983.3,2983.1,1e-08]
[1752565132728,5.122,2983.3,2983.1,3.35219966]
[1752565132927,5.122,2983.3,2983.1,1e-08]
[1752565133623,5.124,2983.2,2983.1,0.33542345]
[1752565133828,5.124,2983.2,2983.1,3.68764094]
[1752565134020,5.124,2983.2,2983.1,1e-08]
[1752565135545,9.86080512,2983.2,2983.1,1e-08]
[1752565137039,6.5087,2983.2,2983.1,1e-08]
[1752565137831,5.2912,2983.2,2983.1,1e-08]
[1752565139119,9.10710512,2983.2,2983.1,1e-08]
[1752565139320,19.75805512,2983.2,2983.1,1e-08]
[1752565139566,20.51795512,2983.2,2983.1,1e-08]
[1752565143464,15.39395512,2983.2,2983.1,1e-08]
[1752565143763,20.52295512,2983.2,2983.1,1e-08]
[1752565144352,15.2962,2983.2,2983.1,1e-08]
[1752565145965,5.129,2983.2,2983.1,10.24839387]
[1752565146366,1.2706,2983.8,2983.2,3.35203933]
[1752565146367,3.81528835,2983.8,2983.2,3.35203933]
[1752565146569,0.1672,2983.6,2983.3,3.35198083]
[1752565146875,5.129,2983.5,2983.2,3.35204871]
[1752565147058,5.129,2983.5,2983.3,3.3519599]
[1752565147265,5.129,2983.5,2983.4,0.4396]
[1752565147757,5.129,2983.5,2983.4,3.3518804]
[1752565147952,5.128,2983.5,2983.4,0.4396]
[1752565148166,0.1672,2983.6,2983.4,0.4396]
[1752565148367,5.128,2983.5,2983.3,3.35196005]
[1752565148534,0.1672,2983.6,2983.4,3.35178615]
[1752565148738,5.127,2983.5,2983.4,3.35178615]
[1752565149082,5.127,2983.5,2983.4,4.6212957]
[1752565149241,0.1672,2983.7,2983.5,3.35167689]
[1752565149446,5.127,2983.6,2983.5,3.35167689]
[1752565150269,5.127,2983.6,2983.4,4.62134165]
[1752565150469,5.129,2983.6,2983.4,0.82990955]
[1752565150648,5.129,2983.6,2983.3,3.35193423]
[1752565150971,0.002,2983.6,2983.4,3.35187168]
[1752565151161,5.127,2983.5,2983.4,3.35187168]
[1752565151771,0.002,2983.6,2983.5,3.35176805]
[1752565151931,5.127,2983.6,2983.5,3.35176805]
[1752565152131,5.127,2983.6,2983.5,5.1241098]
[1752565152328,0.002,2983.6,2983.5,5.1241098]
[1752565153071,0.002,2983.6,2983.5,5.15762748]
[1752565154240,0.002,2983.6,2983.5,5.40729977]
[1752565154873,0.002,2983.6,2983.5,5.95729977]
[1752565155061,0.002,2983.6,2983.5,5.92378209]
[1752565155571,0.002,2983.6,2983.5,11.83035846]
[1752565158678,0.002,2983.6,2983.5,12.38035846]
[1752565160381,0.002,2983.6,2983.5,17.14035846]
[1752565161576,0.002,2983.6,2983.5,22.26235846]
[1752565161973,0.002,2983.6,2983.5,21.27275846]
[1752565162176,0.002,2983.6,2983.5,14.81801671]
[1752565163777,0.002,2983.6,2983.5,4.76]
[1752565164165,0.4658,2983.6,2983.1,9.80876374]
[1752565164358,0.4638,2983.5,2983.2,3.51920152]
[1752565164760,0.4638,2983.4,2983.2,0.1672]
[1752565166357,0.8002,2983.6,2983.2,0.1672]
[1752565166559,0.4575,2983.3,2983.2,0.1672]
[1752565166759,0.4575,2983.3,2983.1,1e-08]
[1752565168294,0.4575,2983.2,2983.1,1e-08]
[1752565168496,4.80050512,2983.2,2983.1,1e-08]
[1752565169491,1.4484,2983.2,2983.1,1e-08]
[1752565169700,4.80050512,2983.2,2983.1,1e-08]
[1752565172002,14.80050512,2983.2,2983.1,1e-08]
[1752565172163,17.12785541,2983.2,2983.1,1e-08]
[1752565176462,15.84665541,2983.2,2983.1,1e-08]
[1752565176662,21.42215541,2983.2,2983.1,1e-08]
[1752565177199,18.07005029,2983.2,2983.1,1e-08]
[1752565177399,21.42215541,2983.2,2983.1,1e-08]
[1752565183682,18.07005029,2983.2,2983.1,1e-08]
[1752565184105,21.42215541,2983.2,2983.1,1e-08]
[1752565185596,22.17495541,2983.2,2983.1,1e-08]
[1752565191404,22.72495541,2983.2,2983.1,1e-08]
[1752565192188,3.35232986,2983.0,2982.9,1e-08]
[1752565192389,20.23616756,2983.0,2982.9,1e-08]
[1752565192591,20.69366756,2983.0,2982.9,1e-08]
[1752565192795,4.17402915,2982.2,2982.1,0.04]
[1752565192994,19.28702915,2982.2,2982.1,0.04]
[1752565193230,19.74452915,2982.2,2982.1,0.04]
[1752565193416,22.05429452,2982.2,2982.1,0.04]
[1752565198094,22.05429452,2982.2,2982.1,1e-08]
[1752565198308,22.60429452,2982.2,2982.1,1e-08]
[1752565199321,22.60429452,2982.2,2981.1,0.04]
[1752565199322,3.35435395,2981.2,2981.1,0.04]
[1752565199633,8.46635395,2981.2,2981.1,0.04]
[1752565199996,5.112,2981.2,2981.1,0.04]
[1752565200346,19.35337657,2981.2,2981.1,0.04]
[1752565200493,18.88397657,2981.2,2981.1,0.04]
[1752565200694,10.41762262,2981.2,2981.1,0.04]
[1752565200930,18.46735395,2981.2,2981.1,0.04]
[1752565201149,18.93675395,2981.2,2981.1,0.04]
[1752565202134,19.73195395,2981.2,2981.1,0.04]
[1752565202438,20.28195395,2981.2,2981.1,0.04]
[1752565202814,14.61895395,2981.2,2981.1,0.04]
[1752565203138,21.53227407,2981.2,2981.1,0.04]
[1752565204728,21.53627407,2981.2,2981.1,0.04]
[1752565205701,12.59252012,2981.2,2981.1,0.04]
[1752565205894,10.0,2981.2,2981.1,0.04]
[1752565206092,15.12,2981.2,2981.1,0.04]
[1752565206328,10.0,2981.2,2981.1,0.04]
[1752565206639,15.12,2981.2,2981.1,0.04]
[1752565207337,5.122,2981.2,2981.1,0.04]
[1752565207540,20.61917249,2981.2,2981.1,0.04]
[1752565209630,14.20197249,2981.2,2981.1,0.04]
[1752565209819,3.3542052,2981.4,2981.1,0.04]
[1752565210021,5.121,2981.3,2981.1,0.04]
[1752565210546,10.0,2981.2,2981.1,0.04]
[1752565211305,5.122,2981.2,2981.1,0.04]
[1752565212258,0.7596,2981.5,2981.1,0.04]
[1752565212549,10.0,2981.3,2981.1,0.04]
[1752565212754,15.121,2981.2,2981.1,0.494]
[1752565212954,15.2882,2981.2,2981.1,0.494]
[1752565213151,10.1672,2981.2,2981.1,0.494]
[1752565213453,0.1672,2981.4,2981.2,3.3543409]
[1752565213754,5.121,2981.3,2981.2,3.3543409]
[1752565213910,15.121,2981.3,2981.2,3.3543409]
[1752565214111,15.121,2981.3,2981.1,0.04]
[1752565214350,15.2882,2981.3,2981.1,0.04]
[1752565214657,3.35435395,2981.2,2981.1,0.04]
[1752565215226,8.47535395,2981.2,2981.1,0.04]
[1752565215661,18.47535395,2981.2,2981.1,0.04]
[1752565215875,21.14442446,2981.2,2981.1,0.04]
[1752565216026,16.02342446,2981.2,2981.1,0.04]
[1752565216240,21.14642446,2981.2,2981.1,0.04]
[1752565216817,20.67702446,2981.2,2981.1,0.04]
[1752565218257,21.14642446,2981.2,2981.1,0.04]
[1752565219629,29.19842446,2981.2,2981.1,0.04]
[1752565220378,28.72902446,2981.2,2981.1,0.04]
[1752565220560,29.19842446,2981.2,2981.1,0.04]
[1752565220778,23.172,2981.2,2981.1,0.04]
[1752565220957,18.052,2981.2,2981.1,0.04]
[1752565221181,26.52535395,2981.2,2981.1,0.04]
[1752565222135,23.171,2981.2,2981.1,0.04]
[1752565222336,18.052,2981.2,2981.1,0.04]
[1752565222534,23.171,2981.2,2981.1,0.494]
[1752565222742,18.052,2981.2,2981.1,0.494]
[1752565222948,23.172,2981.2,2981.1,0.494]
[1752565223380,18.052,2981.2,2981.1,0.494]
[1752565223578,23.172,2981.2,2981.1,0.494]
[1752565224636,8.052,2981.2,2981.1,3.84846647]
[1752565224873,13.171,2981.2,2981.1,3.84846647]
[1752565225838,8.052,2981.2,2981.1,4.58549031]
[1752565226046,8.052,2981.2,2981.1,4.75269031]
[1752565226379,13.171,2981.2,2981.1,4.75269031]
[1752565229282,5.119,2981.2,2981.1,4.75269031]
[1752565231681,5.119,2981.2,2981.1,0.04]
[1752565232952,18.47335395,2981.2,2981.1,0.04]
[1752565233380,19.09675395,2981.2,2981.1,0.04]
[1752565233689,13.52155395,2981.2,2981.1,0.04]
[1752565233863,15.2832,2981.2,2981.1,0.04]
[1752565234071,18.63755395,2981.2,2981.1,0.04]
[1752565234386,15.2832,2981.2,2981.1,0.04]
[1752565234619,10.1672,2981.2,2981.1,0.04]
[1752565234892,5.116,2981.2,2981.1,0.82325766]
[1752565235056,5.116,2981.2,2981.1,0.4838]
[1752565235257,10.0,2981.4,2981.1,0.4838]
[1752565235467,5.116,2981.3,2981.1,3.83823705]
[1752565235667,10.0,2981.4,2981.1,3.83823705]
[1752565235891,5.116,2981.3,2981.1,3.83823705]
[1752565236096,5.116,2981.3,2981.1,0.4838]
[1752565236475,10.0,2981.4,2981.1,0.04]
[1752565236670,5.115,2981.3,2981.1,0.04]
[1752565236876,15.115,2981.3,2981.2,0.611]
[1752565237574,15.115,2981.3,2981.2,3.96535395]
[1752565237976,15.115,2981.3,2981.2,0.611]
[1752565238778,10.0,2981.3,2981.2,3.96535395]
[1752565238978,15.114,2981.3,2981.2,0.1672]
[1752565239185,18.46824143,2981.3,2981.1,0.04]
[1752565239501,15.114,2981.3,2981.1,0.04]
[1752565243404,10.0,2981.3,2981.1,0.04]
[1752565243588,5.111,2981.2,2981.1,4.39888222]
[1752565243962,5.111,2981.2,2981.1,4.56608222]
[1752565244379,5.111,2981.2,2981.1,5.00988222]
[1752565245109,10.0,2981.3,2981.2,3.35435395]
[1752565245278,8.051,2981.5,2981.4,3.35412893]
[1752565245604,13.161,2981.5,2981.4,10.27987801]
[1752565245842,13.161,2981.5,2981.4,11.64329746]
[1752565246010,5.11,2981.5,2981.4,11.64329746]
[1752565249199,0.002,2981.9,2981.6,3.3538737]
[1752565249372,5.109,2981.8,2981.6,3.3538737]
[1752565249575,5.109,2981.8,2981.5,3.79776989]
[1752565249774,5.109,2981.8,2981.7,6.48194908]
[1752565250205,5.108,2981.8,2981.7,6.48194908]
[1752565251913,5.108,2981.8,2981.7,9.83574054]
[1752565252283,5.108,2981.8,2981.7,6.48194908]
[1752565252517,5.108,2981.8,2981.7,7.95417403]
[1752565252684,5.108,2981.8,2981.7,11.30796549]
[1752565252884,5.108,2981.8,2981.7,6.48194908]
[1752565253080,5.108,2981.8,2981.7,9.83574054]
[1752565253389,5.108,2981.8,2981.7,6.48194908]
[1752565253596,5.107,2981.8,2981.7,6.48194908]
[1752565253791,5.107,2981.8,2981.7,9.83574054]
[1752565254015,0.002,2981.9,2981.6,9.83579557]
[1752565254208,5.107,2981.8,2981.7,3.35378224]
[1752565254597,5.107,2981.8,2981.7,3.79758224]
[1752565254919,0.002,2981.9,2981.8,3.35367898]
[1752565255115,5.109,2981.9,2981.8,3.35367898]
[1752565255314,0.002,2981.9,2981.8,3.35367898]
[1752565255515,0.002,2981.9,2981.8,5.16767237]
[1752565255708,5.109,2981.9,2981.8,5.16767237]
[1752565256897,0.002,2981.9,2981.8,5.15767237]
[1752565257126,5.109,2981.9,2981.8,5.15767237]
[1752565257429,5.109,2981.9,2981.8,5.32487237]
[1752565257631,0.002,2981.9,2981.8,5.32487237]
[1752565259412,0.002,2981.9,2981.8,4.89107237]
[1752565259621,0.002,2981.9,2981.8,5.32487237]
[1752565262692,0.002,2981.9,2981.8,5.87487237]
[1752565265223,0.002,2981.9,2981.8,5.90840915]
[1752565265421,0.9435,2982.7,2982.6,3.35277945]
[1752565265628,5.5625,2982.7,2982.6,7.15252308]
[1752565265942,5.5625,2982.7,2982.6,0.670574]
[1752565266741,5.106,2982.7,2982.6,4.02334305]
[1752565267034,0.8314,2982.9,2982.7,3.35259477]
[1752565267208,10.0,2982.8,2982.7,9.83454385]
[1752565267410,15.106,2982.8,2982.7,9.83454385]
[1752565267625,5.106,2982.8,2982.7,11.22040369]
[1752565267802,0.814,2983.1,2982.8,3.35247383]
[1752565268136,10.0,2982.9,2982.8,3.35247383]
[1752565268625,5.106,2983.0,2982.7,11.38754551]
[1752565269136,5.5625,2983.0,2982.7,11.38754551]
[1752565269642,0.4565,2983.0,2982.7,11.38754551]
[1752565269815,5.106,2982.9,2982.7,11.38754551]
[1752565271727,5.105,2982.8,2982.7,11.38754551]
[1752565272301,6.342,2982.8,2982.2,4.76]
[1752565272501,0.7805,2982.4,2982.2,0.1672]
[1752565272742,5.105,2982.3,2981.9,3.3535567]
[1752565272900,5.5615,2982.3,2982.0,0.1672]
[1752565273103,5.105,2982.3,2982.0,0.1672]
[1752565273448,5.105,2982.2,2982.1,10.30262409]
[1752565273736,0.1672,2982.8,2982.4,3.35296034]
[1752565273945,5.105,2982.7,2982.3,3.35306523]
[1752565274104,5.5615,2982.7,2982.4,3.35300192]
[1752565274301,5.5615,2982.7,2982.6,3.35277945]
[1752565274505,5.5615,2982.7,2982.1,7.08294908]
[1752565274738,5.105,2982.7,2982.2,0.7418272]